Cogmind - Beta 10.2 @@@ ROGUE MODE // 2021.09.14 @ 07:07:12 Player: ExAliquo Result: Destroyed by G-47 Trooper with Particle Gun Performance ------------- Evolutions (0) 0 Regions Visited (1) 200 Robots Destroyed (15) 75 Value Destroyed (389) 389 Prototype IDs (0) 0 Alien Tech Used (0) 0 Bonus (0) 0 TOTAL SCORE: 664 Bonus ------- None Cogmind --------- Core Integrity 0/250 Matter 300/300 Energy 99/100 System Corruption 0% Temperature Cool (9) Movement Rolling (100) Location -10/Materials Parts ------- > --- POWER (1) -------- (None) > --- PROPULSION (2) --- Light Treads Compact Wheel > --- UTILITY (2) ------ Heat Sink Small Storage Unit > --- WEAPON (2) ------- Hammer > --- INVENTORY (6) ---- Ion Engine Light Treads Medium Laser Particle Gun Mini Grenade Launcher Plasma Cutter Peak State ------------ > --- POWER ------------ Light Nuclear Core > --- PROPULSION ------- Light Treads Compact Wheel > --- UTILITY ---------- Heat Sink Small Storage Unit > --- WEAPON ----------- Particle Gun Plasma Cutter > --- INVENTORY -------- Ion Engine Light Treads Compact Wheel Small Laser Small Laser Mini Grenade Launcher [Rating: 11] Favorites ----------- Power Light Nuclear Core Engine Light Ion Engine Power Core Light Nuclear Core Propulsion Light Treads Treads Light Treads Leg Aluminum Leg Wheel Compact Wheel Utility Small Storage Unit Device Heat Sink Storage Small Storage Unit Weapon Small Laser Energy Gun Small Laser Ballistic Gun Light Assault Rifle Special Weapon Plasma Cutter Impact Weapon Hammer Build | -11 -10 ------- Run | Scr Mat Slots Evolved . | . . Power . | . . Propulsion . | . . Utility . | . . Weapon . | . . Parts Attached 15 | 2 13 Power 1 | . 1 Engine . | . . Core 1 | . 1 Reactor . | . . Propulsion 6 | 2 4 Treads 3 | 1 2 Leg . | . . Wheel 3 | 1 2 Hover . | . . Flight . | . . Utility 2 | . 2 Device 2 | . 2 Storage . | . . Processor . | . . Hackware . | . . Protection . | . . Artifact . | . . Weapon 6 | . 6 Energy Gun 4 | . 4 Energy Cannon . | . . Ballistic Gun . | . . Ballistic Cannon . | . . Launcher . | . . Special Weapon 1 | . 1 Impact Weapon 1 | . 1 Slashing Weapon . | . . Piercing Weapon . | . . Special Melee Weapon . | . . Unidentified Prototypes . | . . Parts Lost 5 | . 5 Power 1 | . 1 Propulsion 1 | . 1 Utility 1 | . 1 Weapon 2 | . 2 Highest Loss Streak 2 | . 2 Average Slot Usage (%) 96 | . 96 Engine 4 | . 4 Core 8 | . 8 Treads 16 | . 16 Wheel 11 | . 11 Device 12 | . 12 Storage 14 | . 14 Energy Gun 23 | . 23 Ballistic Gun 2 | . 2 Impact Weapon 1 | . 1 Naked Turns . | . . Heaviest Build 14 | 9 14 Greatest Support 40 | 16 40 Greatest Overweight (x) . | . . Average Overweight (x) . | . . Largest Inventory Capacity 6 | 6 6 Average Capacity 6 | 6 6 Most Carried 6 | 6 6 Average Carried 5 | 6 5 Final Capacity 6 | 6 6 Final Carried 6 | 6 6 Class Distribution -------------------- 57% | Mutant 42% | Scavenger-Mutant Dominant Class ---------------- Mutant | -10/Materials Resources | -11 -10 ----------- Run | Scr Mat Matter Collected 359 | 223 136 Remotely 23 | . 23 Salvage Created 621 | 51 570 Parts 32 | 1 31 Haulers Intercepted 1 | . 1 Recyclers Shooed . | . . Parts Field Recycled . | . . Retrieved Matter . | . . Parts Self-Destructed . | . . Prevented . | . . Kills | -11 -10 ------- Run | Scr Mat Combat Hostiles Destroyed 10 | . 10 Guns 10 | . 10 Classes Destroyed 4 | 1 3 Hauler 1 | . 1 Recycler 3 | 1 2 Watcher 1 | . 1 Grunt 10 | . 10 Best Kill Streak 5 | 1 5 Combat Bots Only 5 | . 5 Max Kills in Single Turn 1 | 1 1 Gunslinging . | . . Exploded . | . . Melee . | . . Uniques/NPCs Destroyed . | . . Combat | -11 -10 -------- Run | Scr Mat Damage Taken 875 | . 875 Core 260 | . 260 Absorbed by Shields . | . . Core Remaining (%) 100 | 100 . Volleys Fired 45 | 3 42 Largest 2 | 2 2 Hottest 105 | 60 105 Shots Fired 90 | 6 84 Gun 89 | 6 83 Cannon . | . . Launcher . | . . Special 1 | . 1 Kinetic 19 | 3 16 Thermal 71 | 3 68 Explosive . | . . Electromagnetic . | . . Robot Hit Streak 24 | 2 24 Robot Miss Streak 2 | 1 2 Penetration Max . | . . Secondary Targets 2 | . 2 Max Gunslinging Chain 1 | . 1 Shots Hit Robots 72 | 4 68 Core Hits 26 | 2 24 Critical Hits . | . . Critical Kills . | . . Critical Parts Destroyed . | . . Melee Attacks 2 | . 2 Impact 2 | . 2 Slashing . | . . Piercing . | . . Sneak Attacks . | . . Combat Hostiles . | . . Follow-up Attacks . | . . Damage Inflicted 872 | 37 835 Guns 832 | 37 795 Cannons . | . . Explosions . | . . Melee 40 | . 40 Ramming . | . . Kinetic 137 | 27 110 Thermal 695 | 10 685 Explosive . | . . Electromagnetic . | . . Impact 40 | . 40 Slashing . | . . Piercing . | . . Highest Corruption . | . . Average Corruption . | . . Corruption Purged . | . . Overload Shots . | . . Overflow Damage . | . . Projectiles . | . . Explosions . | . . Melee . | . . Knockbacks 1 | . 1 Impact 1 | . 1 Kinetic . | . . Secondary . | . . Self-Inflicted Damage . | . . Shots . | . . Rammed . | . . Targets Rammed . | . . Kicked . | . . Crushed . | . . Highest Temperature 201 | 20 201 Average Temperature 71 | 15 73 Received Heat Transfer 480 | . 480 Siege Activations . | . . Robots Corrupted . | . . Combat Hostiles . | . . Parts Fried . | . . Impact Corruptions . | . . Robots Melted . | . . Combat Hostiles . | . . Parts Melted 3 | . 3 Heat Transferred 1589 | 25 1564 Parts Sabotaged . | . . Parts Stolen . | . . Parts Stripped . | . . Power Chain Reactions . | . . Missiles Intercepted . | . . Alert | -11 -10 ------- Run | Scr Mat Peak Influence 309 | 5 309 Initial 3 | . 3 Average 171 | 2 176 Maximum Alert Level 1 | . 1 Low Security (%) 63 | 100 62 Level 1 36 | . 37 Level 2 . | . . Level 3 . | . . Level 4 . | . . Level 5 . | . . High Security . | . . Max Security . | . . Squads Dispatched 4 | . 4 Investigation 2 | . 2 Extermination . | . . Reinforcement 2 | . 2 Assault . | . . Garrison . | . . Intercept . | . . Construction Impeded . | . . Haulers Reinforced . | . . Stealth | -11 -10 --------- Run | Scr Mat Distress Signals 2 | . 2 Communications Jammed . | . . Distress Signals . | . . Times Spotted 23 | . 23 Peak Tracking Total 5 | . 5 Tactical Retreats 1 | . 1 Traps | -11 -10 ------- Run | Scr Mat Traps Triggered . | . . Indirectly . | . . Trap Hack Attempts . | . . Triggered . | . . Disarmed . | . . Reprogrammed . | . . Reused . | . . Traps Extracted . | . . Installed . | . . Triggered . | . . Machines | -11 -10 ---------- Run | Scr Mat Machines Disabled . | . . Max in Single Turn . | . . Machines Sabotaged . | . . Garrisons Compromised . | . . Overloaded Fab Kills . | . . Fab Network Shutdowns . | . . Hacking | -11 -10 --------- Run | Scr Mat Machines Accessed 3 | . 3 Terminals 2 | . 2 Fabricators . | . . Repair Stations . | . . Recycling Units 1 | . 1 Scanalyzers . | . . Garrison Access . | . . Total Hacks 11 | . 11 Successful 5 | . 5 Failed 6 | . 6 Catastrophic . | . . Database Lockouts . | . . Manual 9 | . 9 Terminals 10 | . 10 Fabricators . | . . Repair Stations . | . . Recycling Units 1 | . 1 Scanalyzers . | . . Garrison Access . | . . Terminal Hacks 3 | . 3 Robot Analysis 1 | . 1 Locate Traps 1 | . 1 Zone Layout 1 | . 1 Fabricator Hacks . | . . Repair Station Hacks . | . . Recycling Unit Hacks . | . . Scanalyzer . | . . Garrison Access Hacks . | . . Unauthorized Hacks 2 | . 2 Terminals 1 | . 1 Operators 1 | . 1 Fabricators . | . . Repair Stations . | . . Recycling Units 1 | . 1 Tunnel 1 | . 1 Scanalyzers . | . . Garrison Access . | . . Data Cores Recovered . | . . Used . | . . Hacking Detections 2 | . 2 Full Trace Events 2 | . 2 Feedback Events . | . . Feedback Blocked . | . . Robot Schematics Acquired . | . . Robots Built . | . . Matter . | . . Time . | . . Total Robot Build Rating . | . . Part Schematics Acquired . | . . Parts Built . | . . Matter . | . . Time . | . . Total Part Build Rating . | . . Parts Repaired . | . . Time . | . . Parts Recycled . | . . Recycled Matter . | . . Retrieved Matter . | . . Retrieved Components . | . . Parts Scanalyzed . | . . Part Schematics Acquired . | . . Parts Damaged . | . . Bothacking | -11 -10 ------------ Run | Scr Mat Used RIF Installer . | . . Robots Hacked . | . . Non-combat . | . . Combat . | . . Robot Hacks Applied . | . . Relay Couplers Released . | . . Robots Rewired . | . . Allies Hacked . | . . Hacks Repelled . | . . Allies | -11 -10 -------- Run | Scr Mat Total Allies . | . . Largest Group . | . . Highest-Rated Group . | . . Highest-Rated Ally . | . . Total Orders . | . . Ally Attacks . | . . Total Damage . | . . Kills . | . . Allies Corrupted . | . . Allies Melted . | . . Intel | -11 -10 ------- Run | Scr Mat Robot Analysis Total 1 | . 1 Derelict Logs Recovered . | . . Drone Launches . | . . Drone Recoveries . | . . Exploration | -11 -10 ------------- Run | Scr Mat Turns Passed 605 | 18 587 Spaces Moved 344 | 7 337 Core . | . . Treads 53 | . 53 Legs . | . . Wheels 291 | 7 284 Hover . | . . Flight . | . . Fastest Speed 100 | 100 100 Average Speed 109 | 100 109 Slowest Speed 160 | 100 160 Overloaded Moves . | . . Propulsion Burnouts . | . . Robots Hopped . | . . Cave-ins Triggered . | . . Exploration Rate (%) 33 | 2 65 Regions Visited 1 Branch Regions . Pre-discovered Areas 1 | . 1 Known Exits Taken . | . . Unknown Exits Taken 1 | 1 . Scrap Searched . | . . Spaces Dug . | . . Terrain Destroyed . | . . Melee . | . . Projectile . | . . AOE . | . . Terrain Rammed . | . . Walls Destroyed . | . . Machines Disabled . | . . Actions | -11 -10 --------- Run | Scr Mat Total 481 | 11 470 Wait 61 | . 61 Move 343 | 6 337 Hop . | . . Pick Up 6 | . 6 Fast Attach 5 | . 5 Attach 2 | . 2 Detach 1 | . 1 Swap 8 | 2 6 Drop 8 | . 8 Fire 45 | 3 42 Melee 2 | . 2 Ram . | . . Kick . | . . Crush . | . . Escape Stasis . | . . Rewire . | . . Trap . | . . Miscellaneous . | . . Route ------- -11/Scrapyard -10/Materials (discovered 1 exit: [*Mat]) History --------- Turn | Location | Event 13 | -11/Scrapyard | Discovered new exit (range 3) 19 | -11/Scrapyard | Entered Materials 172 | -10/Materials | Core integrity fell below 50% 340 | -10/Materials | Discovered new exit (range 16) 599 | -10/Materials | Core integrity fell below 20% 606 | -10/Materials | Destroyed by G-47 Trooper with Particle Gun Last Messages --------------- 00435_ R-06 Scavenger collects Sml. Storage Unit. 00437_ R-06 Scavenger collects Aluminum Leg. 00452_ K-01 Serf cleans the Fusion Modulator. 00490_ Sml. Laser melted. 00490_ G-34 Mercenary destroyed. 00495_ K-01 Serf collects debris. 00497_ Acquired 10 matter. 00499_ K-01 Serf collects debris. 00523_ O-16 Technician: "IFF HANDSHAKE FAILED. SECURING TERMINAL." 00529_ ALERT: Hostiles spotted, dispatching reinforcements to Terminal M001. 00537_ Dropped Lgt. Treads. 00537_ Acquired Hammer. 00567_ K-01 Serf cleans the Integration Channel. 00567_ O-16 Technician: "IFF HANDSHAKE FAILED. SECURING TERMINAL." 00567_ Sml. Laser destroyed. 00567_ Lgt. Nuclear Core destroyed. 00577_ ALERT: Hostiles spotted, dispatching reinforcements to Terminal M002. 00597_ G-47 Trooper knocked back. Map ----- +----------------------------------------------------+ | #???????????????? | | * #???????????????? | | #???????????????? | | ##+#????????????? | | ! #???o????????? | | o #????????????? | | "T" ### #??????? | | #??????? | | +??????? | | +###+##"T"# #??????? | | # #"""## ##########????????? | | # ###### #??##?????+#??????? | | # #????# #??# ????? #??????? | | # #????# #??# "???" #??????? | | + #????# #??# """"" #??????? | | # #????# #??# """"" #??????? | | # #????# #??# #??????? | | #####????# #??# """"" #??????? | | ###????????# #??# """"" #??????? | | ???????#####+#### """"" #??????? | | ???????# ## #??????? | | ???????# """ ## #???#??? | | ###????#""""" ## #?? #??? | | #????#""""" ##+#####g### ##?? | | " #????#""""" # g #?? | | " #????# """ /g @ #?? | | " #????# # #?? | | #????# ###+####### #?? | | #????# #?????????? #?? | | ###### #?????????? #?? | | # # #?????????? #?? | | #+# #########??????????? #?? | | # # #??????????????????? #?? | | # # !#??????????????????? #?? | | # # #??????????????????? #?? | | # # "" #???????????????????? #?? | | # "T #???????????????????? #?? | | # "" #???????????????????? #?? | | + #???????????????????? #?? | | ########?????????????????????#?? | | ?????????????????????????????? | | ????????????????????????????? | | # #???????????????????????????? | | ?? #???????????????????????????? | | ???#???????????????????????????? | | ???????????????????????????????? | | ???????????????????????????????? | | ???????????????????????????????? | | ???????????????????????????????? | | ???????????????????????????????? | +----------------------------------------------------+ Best States ------------- Heat Dissipation 35 Energy Generation 14 Energy Capacity 160 Matter Stores 300 Matter Capacity 300 Sight Range 16 Terrain Scan Density 10 Evasion (%) 40 Recoil Reduction 2 Item Schematics ----------------- None Robot Schematics ------------------ None Fabricated ------------ Nothing Alien Tech Used ----------------- None Achievements -------------- None Challenges ------------ None Game ------ Seed SigixFlyingDeconstructor Manual? 0 Play Time 00:09:13 Cumulative 26.9 hours Start 2021.09.14 @ 06:58:28 End 2021.09.14 @ 07:07:12 Sessions 1 Manual Loads 0 Difficulty Rogue Special Mode None Game No. 44 Rogue 44 Adventurer 0 Explorer 0 Win Type - Total 0 Types 0/0/0/0/0/0/0/0/0 Lore% 48 Gallery% 54 Achievement% 54 Wizard Run 0 Options --------- ASCII 0 Keyboard 0 Movement Numpad Keybinds 0 Fullscreen 1 Font 18/SmallcapsGlow Map View 76x50 Tactical HUD 1 Map Filters NONE Filters NONE Steam 1 RUN: 140ed656-f595-40ab-ac1a-6052abbf66fe